fUSD/lending_fUSD_20260115
["ID","MTS","AMOUNT","RATE_DAILY","PERIOD"]
[402094162,1768516594247,-500.0,0.00015894,2]
[402094163,1768516594279,-500.0,0.00015894,2]
[402094164,1768516594312,-500.0,0.00015894,2]
[402094165,1768516594344,-500.0,0.00015894,2]
[402094166,1768516594379,-500.0,0.00015894,2]
[402094167,1768516594416,-500.0,0.00015894,2]
[402094168,1768516594449,-500.0,0.00015894,2]
[402094169,1768516594486,-500.0,0.00015894,2]
[402094170,1768516594520,-271.30315528,0.00015894,2]
[402094171,1768516597266,-228.69684472,0.00015894,2]
[402094172,1768516597298,-500.0,0.00015894,2]
[402094173,1768516597329,-500.0,0.00015894,2]
[402094174,1768516597362,-500.0,0.00015894,2]
[402094175,1768516597396,-500.0,0.00015894,2]
[402094176,1768516597431,-500.0,0.00015894,2]
[402094177,1768516597463,-500.0,0.00015894,2]
[402094178,1768516597496,-500.0,0.00015894,2]
[402094179,1768516597530,-500.0,0.00015894,2]
[402094180,1768516597565,-500.0,0.00015894,2]
[402094181,1768516597598,-42.61631056,0.00015894,2]
[402094182,1768516598282,-457.38368944,0.00015894,2]
[402094183,1768516598314,-500.0,0.00015894,2]
[402094184,1768516598346,-500.0,0.00015894,2]
[402094185,1768516598379,-500.0,0.00015894,2]
[402094186,1768516600459,-500.0,0.00015956,2]
[402094187,1768516607983,599.14199998,0.00015894,2]
[402094193,1768516615909,-151.0,0.00015957,2]
[402094194,1768516615943,-151.0,0.00015957,2]
[402094195,1768516615977,-151.0,0.00015957,2]
[402094196,1768516616010,-151.0,0.00015957,2]
[402094197,1768516616042,-151.0,0.00015957,2]
[402094198,1768516616077,-151.0,0.00015957,2]
[402094199,1768516616109,-151.0,0.00015957,2]
[402094200,1768516616144,-151.0,0.00015957,2]
[402094201,1768516616177,-151.0,0.00015957,2]
[402094202,1768516616210,-151.0,0.00015957,2]
[402094203,1768516616243,-151.0,0.00015957,2]
[402094204,1768516616275,-151.0,0.00015957,2]
[402094205,1768516616311,-151.0,0.00015957,2]
[402094206,1768516616345,-151.0,0.00015957,2]
[402094207,1768516616377,-151.0,0.00015957,2]
[402094208,1768516616408,-151.0,0.00015957,2]
[402094209,1768516616445,-151.0,0.00015957,2]
[402094210,1768516616480,-151.0,0.00015957,2]
[402094212,1768516616512,-151.0,0.00015957,2]
[402094214,1768516616545,-151.0,0.00015957,2]
[402094216,1768516624294,1780.272548,0.00015891,2]
[402094217,1768516628534,341.67884985,0.00015894,2]
[402094218,1768516630817,-500.0,0.00015971,2]
[402094221,1768516644719,1182.63347286,0.00015889,2]
[402094222,1768516645935,-434.8846564,0.00015986,2]
[402094224,1768516661132,-275.99651088,0.00015989,2]
[402094238,1768516692523,-195.0,0.00016,2]
[402094239,1768516692557,-600.0,0.00016,2]
[402094240,1768516693384,-6245.46589421,0.00016013,2]
[402094241,1768516693509,-10000.01,0.00016013,2]
[402094242,1768516693631,-10000.01,0.00016013,2]
[402094243,1768516697482,-10000.01,0.00016013,2]
[402094244,1768516697764,-3224.26589421,0.00016013,2]
[402094245,1768516697794,-3551.47821158,0.00016013,2]
[402094246,1768516700456,-388.67944219,0.0001603,2]
[402094247,1768516700493,-275.99651086,0.00016072,2]
[402094248,1768516700534,-600.0,0.00016086,2]
[402094249,1768516700574,-500.0,0.00016089,2]
[402094250,1768516700613,-500.0,0.00016089,2]
[402094251,1768516700652,-500.0,0.00016089,2]
[402094252,1768516700691,-500.0,0.00016089,2]
[402094253,1768516700731,-500.0,0.00016089,2]
[402094254,1768516700771,-500.0,0.00016089,2]
[402094255,1768516700811,-500.0,0.00016089,2]
[402094256,1768516700994,-473.32218147,0.00016089,2]
[402094257,1768516701035,-500.0,0.00016089,2]
[402094258,1768516701074,-500.0,0.00016089,2]
[402094259,1768516701115,-500.0,0.00016089,2]
[402094260,1768516701155,-500.0,0.00016089,2]
[402094261,1768516743459,500.0,0.00015894,2]
[402094262,1768516743528,500.0,0.00015894,2]
[402094263,1768516743768,500.0,0.00015894,2]
[402094264,1768516744101,500.0,0.00015894,2]
[402094267,1768516759518,500.0,0.00015894,2]
[402094276,1768516804649,500.0,0.00015894,2]
[402094279,1768516805470,406.23385599,0.00015894,2]
[402094325,1768516843839,150.0,0.00015908,2]
[402094326,1768516848054,500.0,0.00015894,2]
[402094327,1768516851355,559.1,0.00030137,120]
[402094328,1768516858953,150.0,0.00015908,2]
[402094330,1768516881910,847.13178107,0.00015925,2]
[402094331,1768516881939,10000.01,0.00015925,2]
[402094332,1768516881967,7994.14821893,0.00015925,2]
[402094333,1768516894237,1768.241,0.00015929,2]
[402094334,1768516894351,175.895,0.00015929,2]
[402094335,1768516897889,969.0,0.00030137,120]
[402094336,1768516908899,61.72578107,0.00016025,2]
[402094337,1768516908925,154.84391827,0.00016025,2]
[402094338,1768516909858,500.0,0.00015894,2]
[402094348,1768516953543,201.94127366,0.00016025,2]
[402094349,1768516962894,-201.94127365,0.0001609,2]
[402094350,1768516974031,500.0,0.00015894,2]
[402094351,1768516977189,500.0,0.00015894,2]
[402094352,1768516981614,500.0,0.00015894,2]
[402094354,1768516995060,8096.1274527,0.00015914,2]
[402094355,1768516995087,5841.1225473,0.00015914,2]
[402094362,1768517012212,500.0,0.00015894,2]
[402094364,1768517024775,500.0,0.00015894,2]
[402094365,1768517041570,555.8,0.00015855,2]
[402094366,1768517061486,-300.0,0.00016125,2]
[402094367,1768517061512,-0.00412598,0.00016125,2]
[402094368,1768517063514,-304.05069773,0.00016125,2]
[402094369,1768517065615,-206.46217732,0.00016125,2]
[402094370,1768517067158,-179.67770663,0.00016125,2]
[402094374,1768517068719,-195.0,0.00016125,2]
[402094377,1768517070665,-202.88798265,0.00016125,2]
[402094378,1768517072330,-111.91730969,0.00016125,2]
[402094379,1768517072356,-143.13061616,0.00016125,2]
[402094380,1768517077744,-141.86938384,0.00016125,2]
[402094381,1768517077770,-99.93619463,0.00016125,2]
[402094382,1768517080963,-200.06380537,0.00016125,2]
[402094383,1768517080988,-163.71742833,0.00016125,2]
[402094384,1768517082828,-266.41432922,0.00016125,2]
[402094385,1768517082850,-51.09106768,0.00016126,2]
[402094386,1768517086090,-156.09199774,0.00016126,2]
[402094387,1768517087569,-184.46511752,0.00016126,2]
[402094388,1768517092010,-166.48759201,0.00016126,2]
[402094389,1768517094003,-163.2862865,0.00016126,2]
[402094390,1768517095611,-433.51240799,0.00016126,2]
[402094391,1768517097004,200.0,0.00015992,2]
[402094392,1768517098605,-281.7137135,0.00016126,2]
[402094393,1768517102280,-300.0,0.00016125,2]
[402094394,1768517102305,-19.91859461,0.00016125,2]
[402094400,1768517104784,-271.69787858,0.00016125,2]
[402094401,1768517105137,2361.41,7.971e-05,2]
[402094402,1768517105219,41.6774527,8.39e-05,2]
[402094403,1768517105249,2319.7325473,8.39e-05,2]
[402094404,1768517105337,2361.41,8.81e-05,2]
[402094405,1768517105412,2361.41,9.229e-05,2]
[402094406,1768517105567,2361.41,9.649e-05,2]
[402094407,1768517106099,596.0474527,0.00010068,2]
[402094408,1768517106130,1765.3625473,0.00010068,2]
[402094409,1768517106208,2361.41,0.00010488,2]
[402094410,1768517106285,2361.41,0.00010907,2]
[402094411,1768517106480,2361.41,0.00011327,2]
[402094412,1768517106690,1150.4174527,0.00011746,2]
[402094413,1768517106720,1210.9925473,0.00011746,2]
[402094414,1768517106908,2361.41,0.00012166,2]
[402094415,1768517107121,2361.41,0.00012585,2]
[402094416,1768517107332,2361.41,0.00013005,2]
[402094417,1768517107558,1704.7874527,0.00013424,2]
[402094418,1768517107590,656.6225473,0.00013424,2]
[402094419,1768517107854,2361.41,0.00013844,2]
[402094420,1768517108066,2361.41,0.00014263,2]
[402094421,1768517108311,2361.41,0.00014683,2]
[402094422,1768517108530,2259.1574527,0.00015102,2]
[402094423,1768517108568,102.2525473,0.00015102,2]
[402094424,1768517108600,-320.84462511,0.00016125,2]
[402094425,1768517108662,195.0,0.00014758,2]
[402094426,1768517108868,2361.41,0.00015522,2]
[402094427,1768517109118,2361.41,0.00015941,2]
[402094428,1768517109219,300.0,0.00010152,2]
[402094429,1768517109318,300.0,0.00012677,2]
[402094430,1768517109418,198.64383752,0.00014758,2]
[402094431,1768517111365,-178.18123788,0.00016125,2]
[402094432,1768517111426,218.40209268,0.00015157,2]
[402094433,1768517113820,-280.02587259,0.00016125,2]
[402094434,1768517118227,-129.33179123,0.00016125,2]
[402094435,1768517118252,-74.06103123,0.00016126,2]
[402094436,1768517134311,8923.38,0.00012964,2]
[402094437,1768517285884,-200.0,0.0001567,2]
[402094438,1768517285906,-149.41863399,0.00015794,2]
[402094442,1768517362123,-52.52263966,0.00015794,2]
[402094443,1768517362144,-300.0,0.00015893,2]
[402094444,1768517362176,-500.0,0.00015894,2]
[402094445,1768517362196,-394.45253729,0.00015894,2]
[402094446,1768517376344,-207.1827983,0.00015714,2]
[402094447,1768517378362,-217.48512828,0.00015714,2]
[402094448,1768517382145,-495.81137759,0.00015714,2]
[402094449,1768517383694,-207.223284,0.00015714,2]
[402094450,1768517385193,-205.45482851,0.00015714,2]
[402094451,1768517387749,-292.88949726,0.00015714,2]
[402094452,1768517389481,-210.71644318,0.00015714,2]
[402094453,1768517393734,-170.20645557,0.00015714,2]
[402094455,1768517397169,-374.66500799,0.00015714,2]
[402094456,1768517399204,-294.27108077,0.00015714,2]
[402094457,1768517401833,-274.18160249,0.00015714,2]
[402094460,1768517405019,-190.79785253,0.00015714,2]
[402094470,1768517409644,-90.20214747,0.00015714,2]
[402094471,1768517409676,-130.04216511,0.00015714,2]
[402094477,1768517412035,-307.28417169,0.00015714,2]
[402094480,1768517413210,-151.92555022,0.00015714,2]
[402094487,1768517415733,-177.82724566,0.00015714,2]
[402094493,1768517418889,-192.71582831,0.00015714,2]
[402094494,1768517421615,-342.84898849,0.00015714,2]
[402094495,1768517422414,-1985.57854658,0.00015714,2]
[402094496,1768517423641,-298.54134994,0.00015893,2]
[402094497,1768517425655,-1.45865006,0.00015893,2]
[402094498,1768517425683,-307.15390305,0.00015893,2]
[402094499,1768517427110,-377.26267999,0.00015893,2]
[402094515,1768517431914,-515.58341696,0.00015893,2]
[402094516,1768517431923,-1064.50548358,0.00015893,2]
[402094517,1768517431945,-1089.654329,0.00015893,2]
[402094518,1768517431955,-105.54746271,0.00015894,2]
[402094519,1768517431964,-500.0,0.00015894,2]
[402094520,1768517431974,-500.0,0.00015894,2]
[402094521,1768517431983,-500.0,0.00015894,2]
[402094522,1768517431992,-500.0,0.00015894,2]
[402094523,1768517432001,-506.26751507,0.00015894,2]
[402094524,1768517432011,-500.0,0.00015894,2]
[402094525,1768517432020,-500.0,0.00015894,2]
[402094526,1768517432030,-500.0,0.00015894,2]
[402094527,1768517432040,-500.0,0.00015894,2]
[402094528,1768517432049,-502.40659182,0.00015894,2]
[402094529,1768517432059,-195.0,0.0001601,2]
[402094530,1768517432069,-550.0,0.00016125,2]
[402094531,1768517432079,-525.93896877,0.00016126,2]
[402094532,1768517432089,-15766.32181706,0.00016126,2]
[402094533,1768517432098,-1252.943,0.00016154,2]
[402094534,1768517432107,-664.6395,0.00016154,2]
[402094535,1768517432117,-131.28081557,0.00016154,2]
[402094536,1768517432129,-45086.81278443,0.00016154,2]
[402094537,1768517432139,-2500.0,0.00016154,2]
[402094538,1768517432149,-3726.35384071,0.00016154,2]
[402094539,1768517432158,-5490.8453469,0.00016154,2]
[402094540,1768517432168,-157.77866953,0.00016154,2]
[402094541,1768517432177,-583.21221262,0.00016154,2]
[402094542,1768517432187,-600.0,0.0001616,2]
[402094543,1768517432196,-600.0,0.0001616,2]
[402094544,1768517432206,-168.97,0.00016244,3]
[402094545,1768517432215,-500.0,0.00016244,2]
[402094546,1768517432225,-151.0,0.00016244,2]
[402094547,1768517432234,-500.0,0.00016244,2]
[402094548,1768517432244,-151.0,0.00016244,2]
[402094549,1768517432254,-491.87310376,0.00016244,2]
[402094550,1768517432263,-151.0,0.00016244,2]
[402094551,1768517432272,-151.0,0.00016244,2]
[402094552,1768517432281,-151.0,0.00016244,2]
[402094553,1768517432291,-151.0,0.00016244,2]
[402094554,1768517432300,-151.0,0.00016244,2]
[402094555,1768517432310,-151.0,0.00016244,2]
[402094556,1768517432319,-151.0,0.00016244,2]
[402094557,1768517432329,-151.0,0.00016244,2]
[402094558,1768517432338,-151.0,0.00016244,2]
[402094559,1768517432347,-200.0,0.00016244,2]
[402094560,1768517432357,-500.0,0.00016244,2]
[402094561,1768517432366,-500.0,0.00016244,2]
[402094562,1768517432375,-500.0,0.00016244,2]
[402094563,1768517432385,-500.0,0.00016244,2]
[402094564,1768517432394,-300.65827193,0.00016244,2]
[402094565,1768517432403,-200.0,0.00016244,2]
[402094566,1768517432412,-626.22881488,0.00016244,2]
[402094567,1768517432421,-500.0,0.00016253,2]
[402094568,1768517432431,-500.0,0.00016253,2]
[402094569,1768517432440,-500.0,0.00016253,2]
[402094570,1768517432450,-500.0,0.00016253,2]
[402094571,1768517432459,-500.0,0.00016253,2]
[402094572,1768517432468,-500.0,0.00016253,2]
[402094573,1768517432478,-500.0,0.00016253,2]
[402094574,1768517432487,-500.0,0.00016253,2]
[402094575,1768517432496,-500.0,0.00016253,2]
[402094576,1768517432506,-500.0,0.00016253,2]
[402094577,1768517432515,-500.0,0.00016253,2]
[402094578,1768517432524,-500.0,0.00016253,2]
[402094579,1768517432534,-500.0,0.00016253,2]
[402094580,1768517432543,-500.0,0.00016253,2]
[402094581,1768517432552,-500.0,0.00016253,2]
[402094582,1768517432561,-500.0,0.00016253,2]
[402094583,1768517432571,-545.52256426,0.00016253,2]
[402094584,1768517432580,-500.0,0.00016253,2]
[402094585,1768517432590,-500.0,0.00016253,2]
[402094586,1768517432599,-500.0,0.00016253,2]
[402094587,1768517432608,-500.0,0.00016253,2]
[402094588,1768517432618,-500.0,0.00016253,2]
[402094589,1768517432632,-500.0,0.00016253,2]
[402094590,1768517432642,-500.0,0.00016253,2]
[402094591,1768517432651,-500.0,0.00016253,2]
[402094592,1768517432661,-500.0,0.00016253,2]
[402094593,1768517432670,-500.0,0.00016253,2]
[402094594,1768517432679,-500.0,0.00016253,2]
[402094595,1768517432689,-500.0,0.00016253,2]
[402094596,1768517432701,-500.0,0.00016253,2]
[402094597,1768517432710,-500.0,0.00016253,2]
[402094598,1768517432719,-500.0,0.00016253,2]
[402094599,1768517432729,-500.0,0.00016253,2]
[402094600,1768517432739,-500.0,0.00016253,2]
[402094601,1768517432748,-500.0,0.00016253,2]
[402094602,1768517432757,-500.0,0.00016253,2]
[402094603,1768517432768,-500.0,0.00016253,2]
[402094604,1768517432777,-500.0,0.00016253,2]
[402094605,1768517432787,-304.55225642,0.00016253,2]
[402094606,1768517432796,-500.0,0.00016253,2]
[402094607,1768517432806,-500.0,0.00016253,2]
[402094608,1768517432816,-500.0,0.00016253,2]
[402094609,1768517432826,-500.0,0.00016253,2]
[402094610,1768517432835,-380.1594693,0.00016253,2]
[402094611,1768517432845,-500.0,0.00016253,2]
[402094612,1768517432854,-500.0,0.00016253,2]
[402094613,1768517432864,-500.0,0.00016253,2]
[402094614,1768517432874,-500.0,0.00016253,2]
[402094615,1768517432883,-500.0,0.00016253,2]
[402094616,1768517432893,-500.0,0.00016253,2]
[402094617,1768517432902,-500.0,0.00016253,2]
[402094618,1768517432913,-500.0,0.00016253,2]
[402094619,1768517432923,-515.07199947,0.00016253,2]
[402094620,1768517432933,-500.0,0.00016253,2]
[402094621,1768517432942,-500.0,0.00016253,2]
[402094622,1768517432952,-500.0,0.00016253,2]
[402094623,1768517432961,-500.0,0.00016253,2]
[402094624,1768517432970,-500.0,0.00016253,2]
[402094625,1768517432979,-500.0,0.00016253,2]
[402094626,1768517432988,-500.0,0.00016253,2]
[402094627,1768517432998,-490.4593752,0.00016253,2]
[402094628,1768517433008,-276.11789717,0.00016253,2]
[402094629,1768517433018,-500.0,0.00016253,2]
[402094630,1768517433027,-500.0,0.00016253,2]
[402094631,1768517433037,-286.91463357,0.00016253,2]
[402094632,1768517433046,-495.6638841,0.00016253,2]
[402094633,1768517433055,-193.28252802,0.00016253,2]
[402094634,1768517433065,-500.0,0.00016253,2]
[402094635,1768517433074,-362.88554273,0.00016253,2]
[402094636,1768517433083,-500.0,0.00016253,2]
[402094637,1768517433092,-500.0,0.00016253,2]
[402094638,1768517433102,-500.0,0.00016253,2]
[402094639,1768517433111,-500.0,0.00016253,2]
[402094640,1768517433121,-500.0,0.00016253,2]
[402094641,1768517433130,-150.0,0.00016253,2]
[402094642,1768517433139,-150.0,0.00016253,2]
[402094643,1768517433149,-1545.58,0.00016253,2]
[402094644,1768517433158,-228132.42016019,0.00016254,2]
[402094645,1768517433170,-40979.69073228,0.00016254,2]
[402094646,1768517433181,-71260.35089198,0.00016254,2]
[402094647,1768517433192,-51368.22244856,0.00016254,2]
[402094648,1768517433211,-14310.031116,0.00016254,2]
[402094650,1768517433222,-593949.28465099,0.00016254,2]
[402094652,1768517433231,-513.53,0.00016254,2]
[402094654,1768517433241,-9999.99,0.00016254,2]
[402094656,1768517433250,-999.99,0.00016254,2]
[402094658,1768517433259,-9999.99,0.00016254,2]
[402094659,1768517433268,-150.99,0.00016254,2]
[402094661,1768517433278,-150.99,0.00016254,2]
[402094663,1768517433287,-310.05,0.00016254,2]
[402094665,1768517433296,-299.99,0.00016254,4]
[402094667,1768517433306,-9999.99,0.00016254,2]
[402094669,1768517433315,-9999.99,0.00016254,2]
[402094671,1768517433325,-9999.99,0.00016254,2]
[402094674,1768517433335,-5159.48,0.00016353,2]
[402094676,1768517433345,-500.0,0.00016354,2]
[402094678,1768517433354,-500.0,0.00016354,2]
[402094680,1768517433364,-500.0,0.00016354,2]
[402094682,1768517433373,-500.0,0.00016354,2]
[402094683,1768517433382,-500.0,0.00016354,2]
[402094686,1768517433391,-500.0,0.00016354,2]
[402094688,1768517433400,-500.0,0.00016354,2]
[402094690,1768517433410,-500.0,0.00016354,2]
[402094691,1768517433419,-500.0,0.00016354,2]
[402094693,1768517433428,-500.0,0.00016354,2]
[402094695,1768517433437,-500.0,0.00016354,2]
[402094697,1768517433446,-500.0,0.00016354,2]
[402094699,1768517433455,-500.0,0.00016354,2]
[402094701,1768517433464,-500.0,0.00016354,2]
[402094703,1768517433473,-500.0,0.00016354,2]
[402094705,1768517433483,-500.0,0.00016354,2]
[402094707,1768517433491,-583.2122126,0.00016423,2]
[402094709,1768517433500,-298.96994241,0.00016428,2]
[402094711,1768517433509,-999.0,0.00016437,3]
[402094713,1768517433519,-591.56836668,0.00016438,2]
[402094715,1768517433527,-591.56836668,0.00016438,2]
[402094716,1768517433536,-591.56836668,0.00016438,2]
[402094717,1768517433545,-591.56836668,0.00016438,2]
[402094718,1768517433554,-591.56836668,0.00016438,2]
[402094720,1768517433563,-591.56836668,0.00016438,2]
[402094722,1768517433572,-591.56836668,0.00016438,2]
[402094723,1768517433582,-591.56836668,0.00016438,2]
[402094724,1768517433591,-591.56836668,0.00016438,2]
[402094725,1768517433601,-591.56836668,0.00016438,2]
[402094726,1768517433610,-591.56836668,0.00016438,2]
[402094727,1768517433619,-591.56836668,0.00016438,2]
[402094728,1768517433632,-591.56836668,0.00016438,2]
[402094729,1768517433641,-591.56836668,0.00016438,2]
[402094730,1768517433651,-591.56836668,0.00016438,2]
[402094731,1768517433660,-591.56836668,0.00016438,2]
[402094732,1768517433670,-591.56836668,0.00016438,2]
[402094733,1768517433679,-591.56836668,0.00016438,2]
[402094734,1768517433688,-591.56836668,0.00016438,2]
[402094735,1768517433699,-591.56836668,0.00016438,2]
[402094736,1768517433709,-591.56836668,0.00016438,2]
[402094737,1768517433719,-591.56836668,0.00016438,2]
[402094738,1768517433727,-591.56836668,0.00016438,2]
[402094739,1768517433736,-591.56836668,0.00016438,2]
[402094740,1768517433745,-591.56836668,0.00016438,2]
[402094741,1768517433755,-591.56836668,0.00016438,2]
[402094742,1768517433764,-591.56836668,0.00016438,2]
[402094743,1768517433773,-591.56836668,0.00016438,2]
[402094744,1768517433783,-591.56836668,0.00016438,2]
[402094745,1768517433792,-591.56836668,0.00016438,2]
[402094746,1768517433801,-591.56836668,0.00016438,2]
[402094747,1768517434006,-591.56836668,0.00016438,2]
[402094748,1768517434061,-591.56836668,0.00016438,2]
[402094749,1768517434071,-591.56836668,0.00016438,2]
[402094750,1768517434080,-591.56836668,0.00016438,2]
[402094751,1768517434089,-591.56836668,0.00016438,2]
[402094752,1768517434098,-591.56836668,0.00016438,2]
[402094753,1768517434107,-591.56836668,0.00016438,2]
[402094754,1768517434116,-591.56836668,0.00016438,2]
[402094755,1768517434126,-591.56836668,0.00016438,2]
[402094756,1768517434135,-247.23128809,0.00016438,2]
[402094757,1768517434151,-328.0184482,0.00016438,2]
[402094763,1768517438054,-16.31863039,0.00016438,2]
[402094764,1768517438063,-591.56836668,0.00016438,2]
[402094765,1768517438073,-591.56836668,0.00016438,2]
[402094766,1768517438083,-591.56836668,0.00016438,2]
[402094767,1768517438092,-591.56836668,0.00016438,2]
[402094768,1768517438102,-591.56836668,0.00016438,2]
[402094769,1768517438112,-591.56836668,0.00016438,2]
[402094770,1768517438122,-591.56836668,0.00016438,2]
[402094771,1768517438132,-591.56836668,0.00016438,2]
[402094772,1768517438142,-527.03777196,0.00016438,2]
[402094773,1768517438155,-64.53059472,0.00016438,2]
[402094774,1768517438164,-304.78940528,0.00016438,2]
[402094775,1768517438176,-286.7789614,0.00016438,2]
[402094776,1768517438186,-591.56836668,0.00016438,2]
[402094777,1768517438197,-581.81288648,0.00016438,2]
[402094778,1768517438206,-220.79978544,0.00016438,2]
[402094779,1768517438226,-361.01310104,0.00016438,2]
[402094806,1768517438475,-581.81288648,0.00016438,2]
[402094810,1768517438533,-581.81288648,0.00016438,2]
[402094812,1768517438542,-581.81288648,0.00016438,2]
[402094814,1768517438551,-581.81288648,0.00016438,2]
[402094816,1768517438560,-351.57705057,0.00016438,2]
[402094818,1768517438571,-230.23583591,0.00016438,2]
[402094820,1768517438580,-581.81288648,0.00016438,2]
[402094822,1768517438589,-581.81288648,0.00016438,2]
[402094824,1768517438598,-581.81288648,0.00016438,2]
[402094826,1768517438608,-442.40075465,0.00016438,2]
[402094831,1768517438652,-139.41213183,0.00016438,2]
[402094834,1768517438662,-581.81288648,0.00016438,2]
[402094836,1768517438673,-581.81288648,0.00016438,2]
[402094838,1768517438682,-581.81288648,0.00016438,2]
[402094839,1768517438691,-581.81288648,0.00016438,2]
[402094841,1768517438701,-581.81288648,0.00016438,2]
[402094844,1768517438710,-581.81288648,0.00016438,2]
[402094846,1768517438719,-581.81288648,0.00016438,2]
[402094848,1768517438729,-581.81288648,0.00016438,2]
[402094849,1768517438739,-581.81288648,0.00016438,2]
[402094852,1768517438747,-581.81288648,0.00016438,2]
[402094853,1768517438758,-581.81288648,0.00016438,2]
[402094856,1768517438767,-581.81288648,0.00016438,2]
[402094858,1768517438776,-581.81288648,0.00016438,2]
[402094860,1768517438785,-581.81288648,0.00016438,2]
[402094862,1768517438795,-581.81288648,0.00016438,2]
[402094864,1768517438804,-581.81288648,0.00016438,2]
[402094866,1768517438814,-581.81288648,0.00016438,2]
[402094868,1768517438823,-581.81288648,0.00016438,2]
[402094869,1768517438832,-581.81288648,0.00016438,2]
[402094872,1768517438841,-581.81288648,0.00016438,2]
[402094874,1768517438851,-581.81288648,0.00016438,2]
[402094876,1768517438860,-581.81288648,0.00016438,2]
[402094877,1768517438870,-165.09,0.0001644,2]
[402094880,1768517438879,-1545.58,0.00016527,2]
[402094882,1768517438898,-33208.7114,0.00016631,2]
[402094884,1768517438908,-1000.0,0.00016631,2]
[402094886,1768517438918,-583.2122126,0.00016692,2]
[402094888,1768517438927,-500.0,0.0001673,2]
[402094891,1768517438938,-168638.00163371,0.00016731,2]
[402094893,1768517438948,-200.0,0.00016792,2]
[402094894,1768517438958,-1545.58,0.00016801,2]
[402094896,1768517438969,-169.26261672,0.00016973,2]
[402094898,1768517438979,-500.0,0.00016973,2]
[402094901,1768517438990,-500.0,0.00016973,2]
[402094903,1768517439001,-511.23980469,0.00016973,2]
[402094905,1768517439011,-501.61274464,0.00016973,2]
[402094906,1768517439020,-500.0,0.00016973,2]
[402094908,1768517439029,-500.0,0.00016973,2]
[402094910,1768517439039,-501.80765562,0.00016973,2]
[402094912,1768517439048,-500.0,0.00016973,2]
[402094914,1768517439057,-500.0,0.00016973,2]
[402094916,1768517439067,-500.0,0.00016973,2]
[402094918,1768517439076,-500.0,0.00016973,2]
[402094920,1768517439086,-500.0,0.00016973,2]
[402094922,1768517439095,-500.0,0.00016973,2]
[402094924,1768517439104,-500.0,0.00016973,2]
[402094926,1768517439113,-500.0,0.00016973,2]
[402094928,1768517439122,-500.0,0.00016973,2]
[402094930,1768517439132,-250.0,0.00017,2]
[402094932,1768517439141,-1545.58,0.00017075,2]
[402094934,1768517439150,-2154.15981258,0.00017225,2]
[402094936,1768517439159,-250.0,0.00017236,2]
[402094938,1768517439169,-1352.72085714,0.00017236,2]
[402094940,1768517439179,-935.0,0.00017238,2]
[402094942,1768517439187,-258.19,0.00017259,2]
[402094944,1768517439196,-268.12209397,0.00017285,2]
[402094946,1768517439205,-1545.58,0.00017349,2]
[402094948,1768517439214,-4892.0,0.00017368,2]
[402094949,1768517439224,-600.0,0.00017373,2]
[402094951,1768517439233,-195.0,0.00017373,2]
[402094953,1768517439242,-300.0,0.00017373,2]
[402094955,1768517439251,-4892.0,0.00017387,2]
[402094957,1768517439261,-4892.0,0.00017405,2]
[402094959,1768517439270,-4892.0,0.0001744,2]
[402094962,1768517439280,-1680.0,0.00017466,2]
[402094964,1768517439289,-2500.0,0.00017483,2]
[402094966,1768517439298,-200.52233174,0.00017483,2]
[402094967,1768517439307,-195.0,0.00017483,2]